bitfinex-derivatives/quotes_BNBF0:USTF0_20250630
["timestamp","ask_amount","ask_price","bid_price","bid_amount"]
[1751287221810,0.26601742,654.59,653.86,1.1058933]
[1751287222010,0.26601742,654.59,653.87,1.1058933]
[1751287222211,0.26601742,654.59,653.88,1.1058933]
[1751287222511,0.26601742,654.59,653.84,1.945]
[1751287222813,0.26601742,654.59,653.85,1.1058992]
[1751287223005,0.26601742,654.59,653.86,1.1058992]
[1751287223208,0.26601742,654.59,653.87,1.1058992]
[1751287223409,0.26601742,654.59,653.88,1.1058992]
[1751287223710,0.26601742,654.59,653.89,1.1058992]
[1751287223906,0.26601742,654.59,653.84,1.945]
[1751287224107,0.26601742,654.59,653.85,1.1058927]
[1751287224308,0.26601742,654.59,653.86,1.1058927]
[1751287224512,0.26601742,654.59,653.87,1.1058927]
[1751287224709,0.26601742,654.59,653.88,1.1058927]
[1751287224912,0.26601742,654.59,653.89,1.1058927]
[1751287225114,0.26601742,654.59,653.84,1.945]
[1751287225314,0.26601742,654.59,653.85,1.1058817]
[1751287225614,0.26601742,654.59,653.86,1.1058817]
[1751287225912,0.26601742,654.59,653.87,1.1058817]
[1751287226114,0.26601742,654.59,653.88,1.1058817]
[1751287226314,0.26601742,654.59,653.89,1.1058817]
[1751287226516,0.26601742,654.59,653.84,1.945]
[1751287226714,0.26601742,654.59,653.85,1.1062433]
[1751287226912,0.26601742,654.59,653.86,1.1062433]
[1751287227209,0.26601742,654.59,653.87,1.1062433]
[1751287227413,0.26601742,654.59,653.88,1.1062433]
[1751287227614,0.26601742,654.59,653.89,1.1062433]
[1751287227814,0.26601742,654.59,653.84,1.945]
[1751287228111,0.26601742,654.59,653.85,1.1062445]
[1751287228310,0.26601742,654.59,653.86,1.1062445]
[1751287228513,0.26601742,654.59,653.87,1.1062445]
[1751287228812,0.26601742,654.59,653.88,1.1062445]
[1751287229114,0.26601742,654.59,653.84,1.945]
[1751287229413,0.26601742,654.59,653.85,1.1062599]
[1751287229611,0.26601742,654.59,653.86,1.1062599]
[1751287229813,0.26601742,654.59,653.87,1.1062599]
[1751287230016,0.26601742,654.59,653.88,1.1062599]
[1751287230213,0.26601742,654.59,653.84,1.945]
[1751287230413,0.26601742,654.59,653.85,1.1062673]
[1751287230612,0.26601742,654.59,653.86,1.1062673]
[1751287230813,0.26601742,654.59,653.87,1.1062673]
[1751287231013,0.26601742,654.59,653.88,1.1062673]
[1751287231214,0.26601742,654.59,653.89,1.1062673]
[1751287231414,0.26601742,654.59,653.9,1.1062673]
[1751287231614,0.26601742,654.59,653.91,1.1062673]
[1751287231814,0.26601742,654.59,653.92,1.1062673]
[1751287232115,0.26601742,654.59,653.93,1.1062673]
[1751287232319,0.26601742,654.59,653.84,1.945]
[1751287232619,0.26601742,654.59,653.85,1.1059482]
[1751287232913,0.26601742,654.59,653.86,1.1059482]
[1751287233119,0.26601742,654.59,653.87,1.1059482]
[1751287233415,0.26601742,654.59,653.88,1.1059482]
[1751287233620,0.26601742,654.59,653.89,1.1059482]
[1751287233817,0.26601742,654.59,653.9,1.1059482]
[1751287234023,0.26601742,654.59,653.91,1.1059482]
[1751287234222,0.26601742,654.59,653.92,1.1059482]
[1751287234416,0.26601742,654.59,653.84,1.945]
[1751287234715,0.26601742,654.59,653.85,1.1057532]
[1751287234920,0.26601742,654.59,653.86,1.1057532]
[1751287235116,0.26601742,654.59,653.87,1.1057532]
[1751287235320,0.26601742,654.59,653.88,1.1057532]
[1751287235517,0.26601742,654.59,653.89,1.1057532]
[1751287235724,0.26601742,654.59,653.9,1.1057532]
[1751287236019,0.26601742,654.59,653.91,1.1057532]
[1751287236224,0.26601742,654.59,653.84,1.945]
[1751287236428,0.26601742,654.59,653.85,1.1056409]
[1751287236625,0.26601742,654.59,653.86,1.1056409]
[1751287236924,0.26601742,654.59,653.87,1.1056409]
[1751287237119,0.26601742,654.59,653.88,1.1056409]
[1751287237324,0.26601742,654.59,653.89,1.1056409]
[1751287237621,0.26601742,654.59,653.9,1.1056409]
[1751287237827,0.26601742,654.59,653.84,1.945]
[1751287238120,0.26601742,654.59,653.85,1.105598]
[1751287238419,0.26601742,654.59,653.86,1.105598]
[1751287238720,0.26601742,654.59,653.87,1.105598]
[1751287238920,0.26601742,654.59,653.88,1.105598]
[1751287239120,0.26601742,654.59,653.89,1.105598]
[1751287239320,0.26601742,654.59,653.9,1.105598]
[1751287239524,0.26601742,654.59,653.84,1.945]
[1751287239723,0.26601742,654.59,653.85,1.1055247]
[1751287239925,0.26601742,654.59,653.86,1.1055247]
[1751287240127,0.26601742,654.59,653.87,1.1055247]
[1751287240326,0.26601742,654.59,653.88,1.1055247]
[1751287240621,0.26601742,654.59,653.89,1.1055247]
[1751287240930,0.26601742,654.59,653.9,1.1055247]
[1751287241126,0.26601742,654.59,653.84,1.945]
[1751287241426,0.26601742,654.59,653.85,1.1054645]
[1751287241627,0.26601742,654.59,653.86,1.1054645]
[1751287241925,0.26601742,654.59,653.87,1.1054645]
[1751287242127,0.26601742,654.59,653.88,1.1054645]
[1751287242323,0.26601742,654.59,653.89,1.1054645]
[1751287242524,0.26601742,654.59,653.9,1.1054645]
[1751287242725,0.26601742,654.59,653.84,1.945]
[1751287242926,0.26601742,654.59,653.85,1.1054388]
[1751287243123,0.26601742,654.59,653.86,1.1054388]
[1751287243330,0.26601742,654.59,653.87,1.1054388]
[1751287243525,0.26601742,654.59,653.88,1.1054388]
[1751287243825,0.26601742,654.59,653.89,1.1054388]
[1751287244028,0.26601742,654.59,653.9,1.1054388]
[1751287244328,0.26601742,654.59,653.84,1.945]
[1751287244627,0.26601742,654.59,653.85,1.1053949]
[1751287244824,0.26601742,654.59,653.86,1.1053949]
[1751287245024,0.26601742,654.59,653.87,1.1053949]
[1751287245228,0.26601742,654.59,653.88,1.1053949]
[1751287245428,0.26601742,654.59,653.89,1.1053949]
[1751287245629,0.26601742,654.59,653.9,1.1053949]
[1751287245829,0.26601742,654.59,653.84,1.945]
[1751287246127,0.26601742,654.59,653.85,1.1053765]
[1751287246326,0.26601742,654.59,653.86,1.1053765]
[1751287246631,0.26601742,654.59,653.87,1.1053765]
[1751287246828,0.26601742,654.59,653.88,1.1053765]
[1751287247130,0.26601742,654.59,653.89,1.1053765]
[1751287247432,0.26601742,654.59,653.9,1.1053765]
[1751287247628,0.26601742,654.59,653.84,1.945]
[1751287247829,0.26601742,654.59,653.85,1.1053462]
[1751287248030,0.26601742,654.59,653.86,1.1053462]
[1751287248227,0.26601742,654.59,653.87,1.1053462]
[1751287248430,0.26601742,654.59,653.88,1.1053462]
[1751287248629,0.26601742,654.59,653.89,1.1053462]
[1751287248833,0.26601742,654.59,653.9,1.1053462]
[1751287249032,0.26601742,654.59,653.84,1.945]
[1751287249230,0.26601742,654.59,653.85,1.1053328]
[1751287249429,0.26601742,654.59,653.86,1.1053328]
[1751287249729,0.26601742,654.59,653.87,1.1053328]
[1751287249929,0.26601742,654.59,653.88,1.1053328]
[1751287250129,0.26601742,654.59,653.89,1.1053328]
[1751287250334,0.26601742,654.59,653.9,1.1053328]
[1751287250534,0.26601742,654.59,653.84,1.945]
[1751287250731,0.26601742,654.59,653.85,1.1053152]
[1751287251030,0.26601742,654.59,653.86,1.1053152]
[1751287251230,0.26601742,654.59,653.87,1.1053152]
[1751287251432,0.26601742,654.59,653.88,1.1053152]
[1751287251631,0.26601742,654.59,653.89,1.1053152]
[1751287251828,0.26601742,654.59,653.9,1.1053152]
[1751287252032,0.26601742,654.59,653.84,1.945]
[1751287252236,0.26601742,654.59,653.85,1.1053088]
[1751287252431,0.26601742,654.59,653.86,1.1053088]
[1751287252635,0.26601742,654.59,653.87,1.1053088]
[1751287252832,0.26601742,654.59,653.88,1.1053088]
[1751287253031,0.26601742,654.59,653.89,1.1053088]
[1751287253335,0.26601742,654.59,653.9,1.1053088]
[1751287253536,0.26601742,654.59,653.84,1.945]
[1751287253736,0.26601742,654.59,653.85,1.1053013]
[1751287253931,0.26601742,654.59,653.86,1.1053013]
[1751287254133,0.26601742,654.59,653.87,1.1053013]
[1751287254332,0.26601742,654.59,653.88,1.1053013]
[1751287254533,0.26601742,654.59,653.89,1.1053013]
[1751287254736,0.26601742,654.59,653.9,1.1053013]
[1751287255036,0.26601742,654.59,653.84,1.945]
[1751287255232,0.26601742,654.59,653.85,1.1053003]
[1751287255436,0.26601742,654.59,653.86,1.1053003]
[1751287255731,0.26601742,654.59,653.87,1.1053003]
[1751287255935,0.26601742,654.59,653.84,1.945]
[1751287255936,0.26601742,654.59,653.88,1.1053003]
[1751287256235,0.26601742,654.59,653.89,1.1053003]
[1751287256431,0.26601742,654.59,653.84,1.945]
[1751287256630,0.26601742,654.59,653.85,1.103947]
[1751287256835,0.26601742,654.59,653.86,1.103947]
[1751287257037,0.26601742,654.59,653.87,1.103947]
[1751287257334,0.26601742,654.59,653.88,1.103947]
[1751287257533,0.26601742,654.59,653.89,1.103947]
[1751287257737,0.26601742,654.59,653.84,1.945]
[1751287257934,0.26601742,654.59,653.85,1.1039513]
[1751287258239,0.26601742,654.59,653.86,1.1039513]
[1751287258535,0.26601742,654.59,653.87,1.1039513]
[1751287258739,0.26601742,654.59,653.88,1.1039513]
[1751287258934,0.26601742,654.59,653.89,1.1039513]
[1751287259236,0.26601742,654.59,653.84,1.945]
[1751287259436,0.26601742,654.59,653.85,1.1039653]
[1751287259739,0.26601742,654.59,653.86,1.1039653]
[1751287259939,0.26601742,654.59,653.87,1.1039653]
[1751287260236,0.26601742,654.59,653.88,1.1039653]
[1751287260434,0.26601742,654.59,653.89,1.1039653]
[1751287260639,0.26601742,654.59,653.84,1.945]
[1751287260838,0.26601742,654.59,653.85,1.1039751]
[1751287261041,0.26601742,654.59,653.86,1.1039751]
[1751287261242,0.26601742,654.59,653.87,1.1039751]
[1751287261437,0.26601742,654.59,653.88,1.1039751]
[1751287261642,0.26601742,654.59,653.89,1.1039751]
[1751287261839,0.26601742,654.59,653.84,1.945]
[1751287262043,0.26601742,654.59,653.85,1.1039816]
[1751287262243,0.26601742,654.59,653.86,1.1039816]
[1751287262543,0.26601742,654.59,653.87,1.1039816]
[1751287262740,0.26601742,654.59,653.88,1.1039816]
[1751287262940,0.26601742,654.59,653.89,1.1039816]
[1751287263240,0.26601742,654.59,653.9,1.1039816]
[1751287263444,0.26601742,654.59,653.84,1.945]
[1751287263641,0.26601742,654.59,653.85,1.1039993]
[1751287263841,0.26601742,654.59,653.86,1.1039993]
[1751287264047,0.26601742,654.59,653.87,1.1039993]
[1751287264240,0.26601742,654.59,653.88,1.1039993]
[1751287264539,0.26601742,654.59,653.89,1.1039993]
[1751287264743,0.26601742,654.59,653.9,1.1039993]
[1751287264940,0.26601742,654.59,653.61,1.1452483]
[1751287265144,0.26601742,654.59,653.62,1.1040056]
[1751287265345,0.26601742,654.59,653.63,1.1040056]
[1751287265544,0.26601742,654.59,653.64,1.1040056]
[1751287265842,0.26601742,654.59,653.61,1.1452483]
[1751287265843,0.26601742,654.59,653.65,1.1040056]
[1751287266045,0.26601742,654.59,653.66,1.1040056]
[1751287266242,0.26601742,654.59,653.67,1.1040056]
[1751287266439,0.26601742,654.59,653.68,1.1040056]
[1751287266642,0.26601742,654.59,653.69,1.1040056]
[1751287266844,0.26601742,654.59,653.7,1.1040056]
[1751287267042,0.26601742,654.59,653.71,1.1040056]
[1751287267246,0.26601742,654.59,653.72,1.1040056]
[1751287267445,0.26601742,654.59,653.73,1.1040056]
[1751287267643,0.26601742,654.59,653.67,2.141]
[1751287267644,0.26601742,654.59,653.74,1.1040056]
[1751287267842,0.26601742,654.59,653.75,1.1040056]
[1751287268045,0.26601742,654.59,653.76,1.1040056]
[1751287268343,0.26601742,654.59,653.77,1.1040056]
[1751287268643,0.26601742,654.59,653.78,1.1040056]
[1751287268845,0.26601742,654.59,653.79,1.1040056]
[1751287269045,0.26601742,654.59,653.8,1.1040056]
[1751287269244,0.26601742,654.59,653.81,1.1040056]
[1751287269447,0.26601742,654.59,653.82,1.1040056]
[1751287269648,0.26601742,654.59,653.83,1.1040056]
[1751287269848,0.26601742,654.59,653.84,1.1040056]
[1751287270048,0.26601742,654.59,653.85,1.1040056]
[1751287270248,0.26601742,654.59,653.86,1.1040056]
[1751287270450,0.26601742,654.59,653.87,1.1040056]
[1751287270648,0.26601742,654.59,653.88,1.1040056]
[1751287270847,0.26601742,654.59,653.89,1.1040056]
[1751287271051,0.26601742,654.59,653.9,1.1040056]
[1751287271251,0.26601742,654.59,653.67,2.141]
[1751287271551,0.26601742,654.59,653.68,1.1040897]
[1751287271747,0.26601742,654.59,653.69,1.1040897]
[1751287271951,0.26601742,654.59,653.7,1.1040897]
[1751287272154,0.26601742,654.59,653.71,1.1040897]
[1751287272348,0.26601742,654.59,653.72,1.1040897]
[1751287272552,0.26601742,654.59,653.73,1.1040897]
[1751287272750,0.26601742,654.59,653.74,1.1040897]
[1751287273053,0.26601742,654.59,653.75,1.1040897]
[1751287273353,0.26601742,654.59,653.76,1.1040897]
[1751287273554,0.26601742,654.59,653.77,1.1040897]
[1751287273750,0.26601742,654.59,653.78,1.1040897]
[1751287273951,0.26601742,654.59,653.79,1.1040897]
[1751287274152,0.26601742,654.59,653.8,1.1040897]
[1751287274355,0.26601742,654.59,653.81,1.1040897]
[1751287274653,0.26601742,654.59,653.82,1.1040897]
[1751287274853,0.26601742,654.59,653.83,1.1040897]
[1751287275051,0.26601742,654.59,653.84,1.1040897]
[1751287275250,0.26601742,654.59,653.85,1.1040897]
[1751287275454,0.26601742,654.59,653.86,1.1040897]
[1751287275754,0.26601742,654.59,653.87,1.1040897]
[1751287276051,0.26601742,654.59,653.88,1.1040897]
[1751287276251,0.26601742,654.59,653.89,1.1040897]
[1751287276455,0.26601742,654.59,653.9,1.1040897]
[1751287276652,0.26601742,654.59,653.91,1.1040897]
[1751287276856,0.26601742,654.59,653.67,2.141]
[1751287277054,0.26601742,654.59,653.68,1.1041836]
[1751287277257,0.26601742,654.59,653.69,1.1041836]
[1751287277557,0.26601742,654.59,653.7,1.1041836]
[1751287277756,0.26601742,654.59,653.71,1.1041836]
[1751287277953,0.26601742,654.59,653.72,1.1041836]
[1751287278153,0.26601742,654.59,653.73,1.1041836]
[1751287278451,0.26601742,654.59,653.74,1.1041836]
[1751287278656,0.26601742,654.59,653.75,1.1041836]
[1751287278853,0.26601742,654.59,653.76,1.1041836]
[1751287279058,0.26601742,654.59,653.77,1.1041836]
[1751287279251,0.26601742,654.59,653.78,1.1041836]
[1751287279452,0.26601742,654.59,653.79,1.1041836]
[1751287279654,0.26601742,654.59,653.8,1.1041836]
[1751287279853,0.26601742,654.59,653.81,1.1041836]
[1751287280052,0.26601742,654.59,653.82,1.1041836]
[1751287280356,0.26601742,654.59,653.83,1.1041836]
[1751287280564,0.26601742,654.59,653.84,1.1041836]
[1751287280755,0.26601742,654.59,653.85,1.1041836]
[1751287280957,0.26601742,654.59,653.86,1.1041836]
[1751287281154,0.26601742,654.59,653.87,1.1041836]
[1751287281455,0.26601742,654.59,653.88,1.1041836]
[1751287281655,0.26601742,654.59,653.89,1.1041836]
[1751287281955,0.26601742,654.59,653.9,1.1041836]
[1751287282159,0.26601742,654.59,653.91,1.1041836]
[1751287282455,0.26601742,654.59,653.92,1.1041836]
[1751287282654,0.26601742,654.59,653.67,2.141]
[1751287282861,0.26601742,654.59,653.68,1.1043787]
[1751287283155,0.26601742,654.59,653.69,1.1043787]
[1751287283361,0.26601742,654.59,653.7,1.1043787]
[1751287283559,0.26601742,654.59,653.71,1.1043787]
[1751287283855,0.26601742,654.59,653.67,2.141]
[1751287283856,0.26601742,654.59,653.72,1.1043787]
[1751287284057,0.26601742,654.59,653.73,1.1043787]
[1751287284361,0.26601742,654.59,653.74,1.1043787]
[1751287284558,0.26601742,654.59,653.75,1.1043787]
[1751287284757,0.26601742,654.59,653.76,1.1043787]
[1751287284957,0.26601742,654.59,653.77,1.1043787]
[1751287285262,0.26601742,654.59,653.78,1.1043787]
[1751287285461,0.26601742,654.59,653.79,1.1043787]
[1751287285657,0.26601742,654.59,653.8,1.1043787]
[1751287285962,0.26601742,654.59,653.81,1.1043787]
[1751287286258,0.26601742,654.59,653.82,1.1043787]
[1751287286463,0.26601742,654.59,653.67,2.141]
[1751287286464,0.26601742,654.59,653.83,1.1043787]
[1751287286762,0.26601742,654.59,653.84,1.1043787]
[1751287286958,0.26601742,654.59,653.85,1.1043787]
[1751287287164,0.26601742,654.59,653.86,1.1043787]
[1751287287360,0.26601742,654.59,653.87,1.1043787]
[1751287287565,0.26601742,654.59,653.88,1.1043787]
[1751287287766,0.26601742,654.59,653.89,1.1043787]
[1751287287966,0.26601742,654.59,653.9,1.1043787]
[1751287288162,0.26601742,654.59,653.91,1.1043787]
[1751287288366,0.26601742,654.59,653.92,1.1043787]
[1751287288567,0.26601742,654.59,653.71,1.1452483]
[1751287288766,0.26601742,654.59,653.72,1.1058043]
[1751287288968,0.26601742,654.59,653.73,1.1058043]
[1751287289164,0.26601742,654.59,653.74,1.1058043]
[1751287289369,0.26601742,654.59,653.75,1.1058043]
[1751287289568,0.26601742,654.59,653.76,1.1058043]
[1751287289865,0.26601742,654.59,653.77,1.1058043]
[1751287290065,0.26601742,654.59,653.78,1.1058043]
[1751287290268,0.26601742,654.59,653.79,1.1058043]
[1751287290466,0.26601742,654.59,653.8,1.1058043]
[1751287290666,0.26601742,654.59,653.81,1.1058043]
[1751287290869,0.26601742,654.59,653.82,1.1058043]
[1751287291067,0.26601742,654.59,653.72,1.1452483]
[1751287291068,0.26601742,654.59,653.83,1.1058043]
[1751287291267,0.26601742,654.59,653.84,1.1058043]
[1751287291468,0.26601742,654.59,653.85,1.1058043]
[1751287291671,0.26601742,654.59,653.86,1.1058043]
[1751287291871,0.26601742,654.59,653.87,1.1058043]
[1751287292071,0.26601742,654.59,653.88,1.1058043]
[1751287292266,0.26601742,654.59,653.89,1.1058043]
[1751287292472,0.26601742,654.59,653.72,1.1452483]
[1751287292473,0.26601742,654.59,653.9,1.1058043]
[1751287292672,0.26601742,654.59,653.91,1.1058043]
[1751287292972,0.26601742,654.59,653.92,1.1058043]
[1751287293273,0.26601742,654.59,653.93,1.1058043]
[1751287293469,0.26601742,654.59,653.72,1.1452483]
[1751287293668,0.26601742,654.59,653.73,1.1060947]
[1751287293869,0.26601742,654.59,653.74,1.1060947]
[1751287294077,0.26601742,654.59,653.75,1.1060947]
[1751287294374,0.26601742,654.59,653.76,1.1060947]
[1751287294568,0.26601742,654.59,653.77,1.1060947]
[1751287294772,0.26601742,654.59,653.72,1.1452483]
[1751287294773,0.26601742,654.59,653.78,1.1060947]
[1751287294968,0.26601742,654.59,653.79,1.1060947]
[1751287295172,0.26601742,654.59,653.8,1.1060947]
[1751287295373,0.26601742,654.59,653.81,1.1060947]
[1751287295571,0.26601742,654.59,653.82,1.1060947]
[1751287295775,0.26601742,654.59,653.83,1.1060947]
[1751287295975,0.26601742,654.59,653.84,1.1060947]
[1751287296174,0.26601742,654.59,653.85,1.1060947]
[1751287296372,0.26601742,654.59,653.86,1.1060947]
[1751287296677,0.26601742,654.59,653.87,1.1060947]
[1751287296873,0.26601742,654.59,653.88,1.1060947]
[1751287297176,0.26601742,654.59,653.89,1.1060947]
[1751287297384,0.26601742,654.59,653.9,1.1060947]
[1751287297573,0.26601742,654.59,653.91,1.1060947]
[1751287297872,0.26601742,654.59,653.92,1.1060947]
[1751287298076,0.26601742,654.59,653.93,1.1060947]
[1751287298277,0.26601742,654.59,653.94,1.1060947]
[1751287298576,0.26601742,654.59,653.61,1.1452483]
[1751287298776,0.26601742,654.59,653.62,1.1060879]
[1751287298976,0.26601742,654.59,653.63,1.1060879]
[1751287299179,0.26601742,654.59,653.64,1.1060879]
[1751287299376,0.26601742,654.59,653.65,1.1060879]
[1751287299574,0.26601742,654.59,653.66,1.1060879]
[1751287299873,0.26601742,654.59,653.67,1.1060879]
[1751287300073,0.26601742,654.59,653.68,1.1060879]
[1751287300277,0.26601742,654.59,653.69,1.1060879]
[1751287300572,0.26601742,654.59,653.7,1.1060879]
[1751287300776,0.26601742,654.59,653.71,1.1060879]
[1751287300977,0.26601742,654.59,653.72,1.1060879]
[1751287301177,0.26601742,654.59,653.73,1.1060879]
[1751287301378,0.26601742,654.59,653.74,1.1060879]
[1751287301678,0.26601742,654.59,653.75,1.1060879]
[1751287301878,0.26601742,654.59,653.61,1.1452483]
[1751287301879,0.26601742,654.59,653.76,1.1060879]
[1751287302079,0.26601742,654.59,653.77,1.1060879]
[1751287302275,0.26601742,654.59,653.78,1.1060879]
[1751287302476,0.26601742,654.59,653.79,1.1060879]
[1751287302680,0.26601742,654.59,653.8,1.1060879]
[1751287302881,0.26601742,654.59,653.81,1.1060879]
[1751287303081,0.26601742,654.59,653.82,1.1060879]
[1751287303377,0.26601742,654.59,653.83,1.1060879]
[1751287303581,0.26601742,654.59,653.84,1.1060879]
[1751287303781,0.26601742,654.59,653.85,1.1060879]
[1751287303977,0.26601742,654.59,653.86,1.1060879]
[1751287304180,0.26601742,654.59,653.87,1.1060879]
[1751287304381,0.26601742,654.59,653.88,1.1060879]
[1751287304578,0.26601742,654.59,653.89,1.1060879]
[1751287304779,0.26601742,654.59,653.9,1.1060879]
[1751287304982,0.26601742,654.59,653.91,1.1060879]
[1751287305281,0.26601742,654.59,653.92,1.1060879]
[1751287305481,0.26601742,654.59,653.93,1.1060879]
[1751287305679,0.26601742,654.59,653.94,1.1060879]
[1751287305883,0.26601742,654.59,653.76,2.363]
[1751287306184,0.26601742,654.59,653.77,1.1060818]
[1751287306381,0.26601742,654.59,653.78,1.1060818]
[1751287306581,0.26601742,654.59,653.79,1.1060818]
[1751287306783,0.26601742,654.59,653.8,1.1060818]
[1751287306978,0.26601742,654.59,653.81,1.1060818]
[1751287307182,0.26601742,654.59,653.82,1.1060818]
[1751287307383,0.26601742,654.59,653.83,1.1060818]
[1751287307582,0.26601742,654.59,653.84,1.1060818]
[1751287307778,0.26601742,654.59,653.85,1.1060818]
[1751287307982,0.26601742,654.59,653.86,1.1060818]
[1751287308284,0.26601742,654.59,653.87,1.1060818]
[1751287308484,0.26601742,654.59,653.88,1.1060818]
[1751287308684,0.26601742,654.59,653.89,1.1060818]
[1751287308884,0.26601742,654.59,653.9,1.1060818]
[1751287309081,0.26601742,654.59,653.91,1.1060818]
[1751287309281,0.26601742,654.59,653.92,1.1060818]
[1751287309485,0.26601742,654.59,653.93,1.1060818]
[1751287309785,0.26601742,654.59,653.76,2.363]
[1751287309982,0.26601742,654.59,653.77,1.1060833]
[1751287310186,0.26601742,654.59,653.78,1.1060833]
[1751287310381,0.26601742,654.59,653.79,1.1060833]
[1751287310580,0.26601742,654.59,653.8,1.1060833]
[1751287310783,0.26601742,654.59,653.81,1.1060833]
[1751287310985,0.26601742,654.59,653.82,1.1060833]
[1751287311184,0.26601742,654.59,653.83,1.1060833]
[1751287311385,0.26601742,654.59,653.84,1.1060833]
[1751287311584,0.26601742,654.59,653.85,1.1060833]
[1751287311784,0.26601742,654.59,653.86,1.1060833]
[1751287312082,0.26601742,654.59,653.87,1.1060833]
[1751287312287,0.26601742,654.59,653.76,2.363]
[1751287312288,0.26601742,654.59,653.88,1.1060833]
[1751287312488,0.26601742,654.59,653.89,1.1060833]
[1751287312684,0.26601742,654.59,653.9,1.1060833]
[1751287312983,0.26601742,654.59,653.91,1.1060833]
[1751287313187,0.26601742,654.59,653.92,1.1060833]
[1751287313384,0.26601742,654.59,653.93,1.1060833]
[1751287313584,0.26601742,654.59,653.94,1.1060833]
[1751287313884,0.26601742,654.59,653.76,2.363]
[1751287314085,0.26601742,654.59,653.77,1.10608859]
[1751287314286,0.26601742,654.59,653.78,1.10608859]
[1751287314489,0.26601742,654.59,653.79,1.10608859]
[1751287314689,0.26601742,654.59,653.8,1.10608859]
[1751287314886,0.26601742,654.59,653.81,1.10608859]
[1751287315086,0.26601742,654.59,653.82,1.10608859]
[1751287315284,0.26601742,654.59,653.83,1.10608859]
[1751287315490,0.26601742,654.59,653.84,1.10608859]
[1751287315688,0.26601742,654.59,653.85,1.10608859]
[1751287315887,0.26601742,654.59,653.86,1.10608859]
[1751287316087,0.26601742,654.59,653.87,1.10608859]
[1751287316391,0.26601742,654.59,653.88,1.10608859]
[1751287316591,0.26601742,654.59,653.89,1.10608859]
[1751287316791,0.26601742,654.59,653.9,1.10608859]
[1751287317088,0.26601742,654.59,653.91,1.10608859]
[1751287317286,0.26601742,654.59,653.92,1.10608859]
[1751287317491,0.26601742,654.59,653.93,1.10608859]
[1751287317691,0.26601742,654.59,653.94,1.10608859]
[1751287317891,0.26601742,654.59,653.76,2.363]
[1751287318093,0.26601742,654.59,653.77,1.1060611]
[1751287318392,0.26601742,654.59,653.78,1.1060611]
[1751287318592,0.26601742,654.59,653.79,1.1060611]
[1751287318791,0.26601742,654.59,653.8,1.1060611]
[1751287319088,0.26601742,654.59,653.76,2.363]
[1751287319089,0.26601742,654.59,653.81,1.1060611]
[1751287319290,0.26601742,654.59,653.82,1.1060611]
[1751287319490,0.26601742,654.59,653.83,1.1060611]
[1751287319790,0.26601742,654.59,653.84,1.1060611]
[1751287319993,0.26601742,654.59,653.85,1.1060611]
[1751287320190,0.26601742,654.59,653.86,1.1060611]
[1751287320388,0.26601742,654.59,653.69,1.1452483]
[1751287320389,0.26601742,654.59,653.87,1.1060611]
[1751287320694,0.26601742,654.59,653.88,1.1060611]
[1751287320892,0.26601742,654.59,653.89,1.1060611]
[1751287321095,0.26601742,654.59,653.9,1.1060611]
[1751287321292,0.26601742,654.59,653.69,1.1452483]
[1751287321293,0.26601742,654.59,653.91,1.1060611]
[1751287321596,0.26601742,654.59,653.92,1.1060611]
[1751287321794,0.26601742,654.59,653.93,1.1060611]
[1751287322000,0.26601742,654.59,653.7,1.1452483]
[1751287322198,0.26601742,654.59,653.71,1.106075]
[1751287322400,0.26601742,654.59,653.72,1.106075]
[1751287322602,0.26601742,654.59,653.73,1.106075]
[1751287322896,0.26601742,654.59,653.74,1.106075]
[1751287323096,0.26601742,654.59,653.75,1.106075]
[1751287323296,0.26601742,654.59,653.76,1.106075]
[1751287323495,0.26601742,654.59,653.73,2.059]
[1751287323496,0.26601742,654.59,653.77,1.106075]
[1751287323696,0.26601742,654.59,653.78,1.106075]
[1751287323998,0.26601742,654.59,653.79,1.106075]
[1751287324206,0.26601742,654.59,653.8,1.106075]
[1751287324405,0.26601742,654.59,653.81,1.106075]
[1751287324607,0.26601742,654.59,653.82,1.106075]
[1751287324804,0.26601742,654.59,653.83,1.106075]
[1751287325005,0.26601742,654.59,653.84,1.106075]
[1751287325208,0.26601742,654.59,653.85,1.106075]
[1751287325404,0.26601742,654.59,653.86,1.106075]
[1751287325603,0.26601742,654.59,653.73,2.059]
[1751287325604,0.26601742,654.59,653.87,1.106075]
[1751287325909,0.26601742,654.59,653.88,1.106075]
[1751287326208,0.26601742,654.59,653.89,1.106075]
[1751287326406,0.26601742,654.59,653.9,1.106075]
[1751287326607,0.26601742,654.59,653.91,1.106075]
[1751287326807,0.26601742,654.59,653.92,1.106075]
[1751287327105,0.26601742,654.59,653.93,1.106075]
[1751287327304,0.26601742,654.59,653.94,1.106075]
[1751287327504,0.26601742,654.59,653.73,2.059]
[1751287327705,0.26601742,654.59,653.74,1.1061082]
[1751287327906,0.26601742,654.59,653.75,1.1061082]
[1751287328105,0.26601742,654.59,653.76,1.1061082]
[1751287328409,0.26601742,654.59,653.77,1.1061082]
[1751287328608,0.26601742,654.59,653.78,1.1061082]
[1751287328806,0.26601742,654.59,653.79,1.1061082]